bitfinex/quotes_SOLUSD_20250918
["timestamp","ask_amount","ask_price","bid_price","bid_amount"]
[1758239422557,52.07788169,247.21,247.2,0.74]
[1758239422558,15.21479777,247.21,247.2,0.74]
[1758239422726,13.59559401,247.22,247.2,0.74]
[1758239422933,0.14216157,247.21,247.2,0.74]
[1758239423240,0.28432314,247.21,247.2,0.74]
[1758239423548,13.59559401,247.22,247.2,0.74]
[1758239423843,0.70813137,247.23,247.2,0.74]
[1758239424231,13.59559401,247.22,247.2,0.74]
[1758239424535,12.87559401,247.22,247.2,0.74]
[1758239425047,0.14216157,247.21,247.2,0.74]
[1758239425339,12.87559401,247.22,247.2,0.74]
[1758239432026,0.70813137,247.23,247.2,0.74]
[1758239432457,0.70813137,247.23,247.21,31.08]
[1758239432638,0.70813137,247.23,247.22,0.71]
[1758239434059,14.30372538,247.23,247.22,0.71]
[1758239434248,13.87991715,247.22,247.2,0.03]
[1758239434826,0.28432314,247.22,247.2,0.74]
[1758239435032,0.28432314,247.22,247.21,0.71]
[1758239435232,13.87991715,247.22,247.21,0.71]
[1758239435567,13.87991715,247.22,247.2,0.03]
[1758239435738,13.87991715,247.22,247.2,0.74]
[1758239436658,13.87991715,247.22,247.2,0.03]
[1758239437359,14.55991715,247.21,247.2,0.03]
[1758239437736,13.87991715,247.21,247.2,0.03]
[1758239438139,14.55991715,247.21,247.2,0.03]
[1758239448258,13.87991715,247.21,247.2,0.03]
[1758239452560,14.55991715,247.21,247.2,0.03]
[1758239452954,20.22406809,247.21,247.2,0.03]
[1758239453177,15.49892429,247.21,247.2,0.74]
[1758239453475,13.87991715,247.21,247.2,0.74]
[1758239454058,0.06,247.26,247.23,26.0]
[1758239454278,0.06,247.28,247.24,0.71]
[1758239454476,0.20216157,247.28,247.24,0.71]
[1758239454677,13.65559401,247.28,247.24,0.71]
[1758239455079,0.06,247.25,247.24,0.71]
[1758239455286,0.06,247.27,247.24,0.71]
[1758239461171,0.06,247.27,247.2,31.11]
[1758239461172,0.28432314,247.26,247.2,0.03]
[1758239461373,0.28432314,247.26,247.23,0.68]
[1758239461578,0.28432314,247.26,247.24,26.68]
[1758239461878,0.06,247.27,247.24,26.68]
[1758239462085,0.06,247.27,247.25,0.68]
[1758239462476,0.06,247.28,247.26,0.68]
[1758239462763,0.06,247.31,247.3,26.0]
[1758239462969,0.06,247.31,247.3,26.68]
[1758239470201,13.59559401,247.3,247.23,26.0]
[1758239470498,13.59559401,247.3,247.21,4.01819198]
[1758239470499,0.28432314,247.29,247.27,26.0]
[1758239470692,0.28432314,247.29,247.25,0.68]
[1758239470895,0.28432314,247.29,247.27,26.0]
[1758239471098,13.59559401,247.28,247.27,26.0]
[1758239472115,13.87991715,247.28,247.27,26.0]
[1758239472345,13.87991715,247.28,247.23,26.68]
[1758239472492,13.59559401,247.26,247.24,31.14]
[1758239472817,13.59559401,247.26,247.24,31.17]
[1758239473003,0.28432314,247.25,247.24,0.03]
[1758239473178,14.58991715,247.25,247.24,31.17]
[1758239473583,14.58991715,247.25,247.24,35.21465296]
[1758239474687,13.87991715,247.25,247.24,35.21465296]
[1758239475106,13.87991715,247.25,247.24,35.89465296]
[1758239475314,13.87991715,247.25,247.24,35.21465296]
[1758239480208,13.59559401,247.25,247.24,35.89465296]
[1758239480409,0.14216157,247.28,247.27,26.0]
[1758239480615,0.06,247.29,247.27,57.8]
[1758239480913,0.06,247.29,247.28,4.0439987]
[1758239482430,0.20216157,247.29,247.28,4.0439987]
[1758239483937,14.64991715,247.29,247.28,4.0439987]
[1758239484130,13.93991715,247.29,247.28,4.0439987]
[1758239484534,13.87991715,247.28,247.27,30.04400143]
[1758239484717,14.58991715,247.28,247.27,4.04400143]
[1758239486732,0.14216157,247.28,247.27,4.04400143]
[1758239486908,0.85216157,247.28,247.27,4.04400143]
[1758239488537,0.85216157,247.28,247.26,61.16432174]
[1758239488719,0.85216157,247.27,247.26,61.16432581]
[1758239489114,0.85216157,247.27,247.24,0.03]
[1758239489115,13.73775558,247.26,247.24,0.03]
[1758239489434,13.87991715,247.26,247.24,0.03]
[1758239489738,0.28432314,247.26,247.25,31.12]
[1758239490126,0.99432314,247.26,247.25,31.12]
[1758239490322,0.14216157,247.25,247.24,0.03]
[1758239490539,16.14753132,247.25,247.24,0.03]
[1758239490722,16.85753132,247.25,247.24,0.03]
[1758239491647,20.9020207,247.25,247.24,0.03]
[1758239491835,14.58991715,247.25,247.24,0.03]
[1758239492349,0.28432314,247.25,247.24,0.03]
[1758239492530,0.28432314,247.25,247.24,26.03]
[1758239492733,0.77,247.29,247.24,26.75]
[1758239492913,0.77,247.29,247.25,31.86]
[1758239492914,0.06,247.29,247.25,31.86]
[1758239493114,0.06,247.29,247.28,26.0]
[1758239493340,0.06,247.29,247.28,57.16]
[1758239493538,0.34432314,247.29,247.28,61.2039987]
[1758239493843,0.06,247.29,247.28,61.2039987]
[1758239494053,0.34432314,247.29,247.28,61.2039987]
[1758239494232,13.93991715,247.29,247.28,61.2039987]
[1758239494432,14.50775558,247.29,247.28,57.16]
[1758239494947,14.64991715,247.29,247.28,57.16]
[1758239495921,14.64991715,247.29,247.28,31.16]
[1758239496117,0.14216157,247.27,247.24,0.03]
[1758239496321,13.59559401,247.25,247.24,22.43]
[1758239498030,13.59559401,247.25,247.24,26.47465296]
[1758239499541,0.06,247.29,247.24,26.47465296]
[1758239499736,0.28432314,247.26,247.24,26.47465296]
[1758239502133,0.34432314,247.29,247.25,0.72]
[1758239502348,0.34432314,247.29,247.26,31.84]
[1758239503754,0.34432314,247.29,247.27,4.04416225]
[1758239506255,0.06,247.29,247.28,26.0]
[1758239506555,0.06,247.29,247.28,57.84]
[1758239507150,0.06,247.29,247.28,61.8839987]
[1758239509146,0.06,247.31,247.28,61.8839987]
[1758239509343,0.06,247.32,247.29,0.72]
[1758239509555,13.65559401,247.37,247.33,26.0]
[1758239509760,0.06,247.37,247.33,57.94]
[1758239510268,0.06,247.37,247.34,0.72]
[1758239510565,0.06,247.37,247.35,57.22]
[1758239510947,0.06,247.37,247.35,57.94]
[1758239511270,0.06,247.37,247.36,4.04269081]
[1758239516766,0.06,247.37,247.36,4.70269081]
[1758239517656,0.06,247.37,247.36,4.04269081]
[1758239525152,0.06,247.37,247.36,4.70269081]
[1758239525348,0.06,247.4,247.37,26.0]
[1758239525567,0.06,247.4,247.38,31.16]
[1758239525779,13.65559401,247.42,247.39,57.16]
[1758239525954,0.67,247.46,247.4,0.66]
[1758239526154,0.67,247.46,247.44,26.0]
[1758239526478,0.67,247.46,247.44,57.18]
[1758239526856,0.67,247.48,247.44,57.18]
[1758239527060,0.67,247.48,247.44,57.84]
[1758239527559,0.67,247.48,247.45,4.04122044]
[1758239527753,0.67,247.47,247.46,31.18]
[1758239527949,14.54991715,247.47,247.46,31.18]
[1758239528356,13.87991715,247.46,247.44,31.18]
[1758239528579,13.87991715,247.46,247.39,0.66]
[1758239528580,14.54991715,247.46,247.43,31.18]
[1758239528879,0.67,247.52,247.47,26.0]
[1758239529053,20.0,247.6,247.47,26.0]
[1758239529054,0.67,247.51,247.48,31.18]
[1758239529253,13.59559401,247.49,247.48,31.18]
[1758239529481,13.59559401,247.49,247.48,35.22073056]
[1758239529668,13.59559401,247.53,247.51,26.0]
[1758239529983,0.28432314,247.52,247.51,26.0]
[1758239530179,13.59559401,247.53,247.51,26.0]
[1758239530561,0.28432314,247.52,247.51,26.0]
[1758239530779,14.54991715,247.52,247.51,26.0]
[1758239531281,13.87991715,247.52,247.51,26.0]
[1758239532160,13.87991715,247.52,247.51,30.70024079]
[1758239532369,13.59559401,247.57,247.51,30.70024079]
[1758239532585,13.59559401,247.57,247.52,31.84]
[1758239532877,4.03887679,247.6,247.52,31.84]
[1758239532878,0.28432314,247.54,247.52,31.18]
[1758239533085,0.14216157,247.54,247.52,31.18]
[1758239533583,0.28432314,247.54,247.52,4.03993656]
[1758239533775,0.28432314,247.54,247.53,31.84]
[1758239534480,0.28432314,247.54,247.51,26.0]
[1758239534687,0.67,247.53,247.48,26.66]
[1758239534986,17.91901562,247.58,247.52,26.0]
[1758239535365,0.28432314,247.55,247.52,26.0]
[1758239535687,13.87991715,247.53,247.52,26.0]
[1758239535862,0.95432314,247.53,247.52,26.0]
[1758239536867,0.28432314,247.52,247.51,31.18]
[1758239538379,0.28432314,247.52,247.51,31.16]
[1758239539165,0.67,247.54,247.51,31.16]
[1758239539367,0.67,247.54,247.51,35.20018893]
[1758239539693,0.28432314,247.55,247.54,26.0]
[1758239540187,0.14216157,247.55,247.54,26.0]
[1758239540397,0.28432314,247.55,247.54,26.0]
[1758239540680,0.28432314,247.55,247.53,31.16]
[1758239542401,0.28432314,247.55,247.53,35.19989548]
[1758239542769,0.28432314,247.55,247.53,35.85989548]
[1758239542973,13.87991715,247.58,247.53,35.85989548]
[1758239543280,0.67,247.57,247.53,35.85989548]
[1758239543489,0.06,247.54,247.53,35.85989548]
[1758239544962,0.06,247.54,247.53,35.19989548]
[1758239545385,0.06,247.54,247.53,35.86989548]
[1758239546875,0.06,247.54,247.53,30.70989548]
[1758239547086,0.06,247.54,247.53,61.19989548]
[1758239547492,0.06,247.54,247.53,61.86989548]
[1758239553072,0.06,247.54,247.53,30.70989548]
[1758239553393,0.06,247.54,247.53,61.82989548]
[1758239554784,0.06,247.54,247.53,61.80989548]
[1758239554993,0.06,247.54,247.53,61.13989548]
[1758239555375,0.06,247.54,247.53,61.80989548]
[1758239565106,0.06,247.54,247.53,61.13989548]
[1758239565485,0.06,247.54,247.53,61.80989548]
[1758239567998,0.06,247.54,247.53,61.13989548]
[1758239568401,0.06,247.54,247.53,61.09989548]
[1758239568789,0.06,247.54,247.53,61.76989548]
[1758239572084,0.06,247.54,247.53,61.09989548]
[1758239573097,0.06,247.54,247.53,57.06]
[1758239573398,0.06,247.54,247.53,61.09991435]
[1758239573794,0.06,247.54,247.53,61.76991435]
[1758239574000,0.06,247.54,247.53,61.09991435]
[1758239574193,0.06,247.54,247.53,61.75991435]
[1758239574610,0.06,247.54,247.53,61.09991435]
[1758239577220,0.06,247.54,247.53,30.03991435]
[1758239577513,0.06,247.54,247.53,61.09991435]
[1758239580712,0.06,247.54,247.53,30.03991435]
[1758239580916,0.06,247.54,247.53,61.09991435]
[1758239581224,0.06,247.54,247.53,61.76991435]
[1758239584309,0.06,247.54,247.53,62.26991435]
[1758239586930,0.06,247.54,247.53,30.53991435]
[1758239587136,0.06,247.54,247.53,61.59991435]
[1758239587926,0.06,247.54,247.53,62.26991435]
[1758239588635,0.06,247.54,247.53,31.20991435]
[1758239588848,0.06,247.54,247.53,61.59991435]
[1758239593055,0.06,247.54,247.53,30.53991435]
[1758239593239,0.06,247.54,247.53,61.59991435]
[1758239595953,0.06,247.54,247.53,30.53991435]
[1758239596130,0.06,247.54,247.53,61.59991435]
[1758239596762,0.06,247.54,247.53,62.26991435]
[1758239598458,0.06,247.54,247.53,31.20991435]
[1758239598658,0.06,247.54,247.53,62.26991435]
[1758239602153,0.06,247.54,247.53,31.20991435]
[1758239602335,0.06,247.54,247.53,62.26991435]
[1758239605057,0.06,247.54,247.53,61.59991435]
[1758239605253,0.06,247.54,247.53,30.53991435]
[1758239605454,0.06,247.54,247.53,61.59991435]
[1758239605634,0.06,247.54,247.53,36.25991435]
[1758239606056,0.06,247.54,247.53,35.59991435]
[1758239606656,0.06,247.54,247.53,36.25991435]
[1758239608163,0.06,247.54,247.53,35.59991435]
[1758239608742,0.06,247.54,247.53,36.25991435]
[1758239609758,0.06,247.54,247.53,35.59991435]
[1758239610261,0.06,247.54,247.53,30.53991435]
[1758239610465,0.06,247.54,247.53,61.59991435]
[1758239611160,0.73,247.54,247.53,0.5]
[1758239611361,14.60991715,247.54,247.53,31.56]
[1758239614155,0.06,247.54,247.53,35.59991435]
[1758239614362,0.73,247.54,247.53,35.59991435]
[1758239615951,0.06,247.54,247.53,35.59991435]
[1758239616148,0.06,247.54,247.53,36.25991435]
[1758239622273,14.60991715,247.54,247.53,0.5]
[1758239622448,14.60991715,247.54,247.53,31.56]
[1758239622649,14.60991715,247.54,247.53,57.56]
[1758239623366,14.60991715,247.54,247.53,31.56]
[1758239623867,14.60991715,247.54,247.53,0.5]
[1758239628479,0.06,247.54,247.53,0.5]
[1758239628859,0.06,247.54,247.53,4.53991435]
[1758239629476,0.06,247.54,247.53,5.19991435]
[1758239633675,0.06,247.57,247.56,26.0]
[1758239633867,0.06,247.57,247.56,57.06]
[1758239634064,0.06,247.57,247.56,57.72]
[1758239635773,0.06,247.57,247.56,61.75942478]
[1758239636181,0.06,247.57,247.56,30.69942478]
[1758239636380,0.06,247.57,247.56,30.03942478]
[1758239636585,0.06,247.57,247.56,61.09942478]
[1758239636785,0.76,247.57,247.56,30.03942478]
[1758239636993,0.76,247.57,247.54,4.03959346]
[1758239637185,0.7,247.56,247.55,31.08]
[1758239637783,0.7,247.56,247.55,35.11958796]
[1758239638483,0.7,247.56,247.55,57.06]
[1758239638984,14.57991715,247.56,247.55,57.06]
[1758239639168,14.57991715,247.56,247.55,57.08]
[1758239640482,14.57991715,247.56,247.55,26.0]
[1758239640675,14.57991715,247.56,247.55,57.08]
[1758239642295,13.87991715,247.55,247.53,0.5]
[1758239642506,13.87991715,247.55,247.53,31.56]
[1758239642675,14.57991715,247.54,247.53,31.56]
[1758239643005,14.57991715,247.54,247.53,0.5]
[1758239643678,13.87991715,247.53,247.5,31.08]
[1758239643874,13.87991715,247.53,247.44,4.04138376]
[1758239644078,0.7,247.52,247.48,26.0]
[1758239644297,13.87991715,247.5,247.49,31.08]
[1758239644500,14.57991715,247.5,247.49,31.08]
[1758239648278,13.87991715,247.5,247.49,31.08]
[1758239648886,0.28432314,247.49,247.47,0.03]
[1758239649098,0.28432314,247.49,247.48,31.08]
[1758239649417,0.98432314,247.49,247.48,31.08]
[1758239650984,13.59559401,247.48,247.47,0.03]
[1758239651203,13.87991715,247.48,247.47,31.09]
[1758239651396,0.28432314,247.48,247.47,31.09]
[1758239651700,0.98432314,247.48,247.47,31.09]
[1758239652109,0.98432314,247.48,247.47,0.03]
[1758239652414,0.98432314,247.48,247.47,31.09]
[1758239653887,0.28432314,247.48,247.47,31.09]
[1758239654701,0.28432314,247.48,247.47,35.13089384]
[1758239654904,0.28432314,247.48,247.47,31.09]
[1758239655791,0.28432314,247.48,247.47,31.11]
[1758239656633,0.28432314,247.48,247.47,35.15089384]
[1758239658500,0.28432314,247.48,247.47,31.11]
[1758239658700,14.57991715,247.48,247.47,31.11]
[1758239659318,13.87991715,247.48,247.47,31.11]
[1758239659806,14.57991715,247.48,247.47,0.03]
[1758239659994,14.57991715,247.48,247.47,26.03]
[1758239662016,13.87991715,247.48,247.47,26.03]
[1758239662408,13.87991715,247.48,247.47,30.07089384]
[1758239663410,13.87991715,247.48,247.47,30.78089384]
[1758239663802,13.87991715,247.48,247.47,30.07089384]
[1758239664617,14.57991715,247.48,247.47,26.03]
[1758239665415,13.87991715,247.48,247.47,26.03]
[1758239665616,14.54991715,247.48,247.47,26.03]
[1758239666116,13.87991715,247.48,247.47,30.75089384]
[1758239666698,13.87991715,247.48,247.47,30.07089384]
[1758239669628,13.87991715,247.48,247.47,30.75089384]
[1758239669925,13.87991715,247.48,247.47,4.75089384]
[1758239669926,13.59559401,247.48,247.47,4.75089384]
[1758239670125,0.73,247.54,247.47,14.85312845]
[1758239670126,0.06,247.54,247.47,14.85312845]
[1758239670323,0.06,247.54,247.51,26.0]
[1758239670511,0.06,247.54,247.51,57.06]
[1758239670710,0.06,247.54,247.52,0.68]
[1758239671804,0.06,247.54,247.53,4.71991435]
[1758239672326,0.34432314,247.54,247.53,4.71991435]
[1758239672528,0.34432314,247.54,247.53,4.03991435]
[1758239673318,0.34432314,247.54,247.53,4.71991435]
[1758239673818,0.34432314,247.54,247.52,4.04007756]
[1758239674210,0.34432314,247.54,247.52,4.72007756]
[1758239675523,0.28432314,247.52,247.51,26.0]
[1758239675819,13.87991715,247.51,247.48,41.16164045]
[1758239676017,0.28432314,247.5,247.48,41.16164045]
[1758239676527,0.28432314,247.5,247.48,41.84164045]
[1758239678031,0.28432314,247.5,247.48,45.88237101]
[1758239678520,0.28432314,247.5,247.49,0.68]
[1758239679629,0.28432314,247.5,247.48,45.20237101]
[1758239679833,0.28432314,247.5,247.49,0.68]
[1758239680226,0.28432314,247.5,247.48,45.20237101]
[1758239680435,0.28432314,247.5,247.48,45.88237101]
[1758239680929,0.28432314,247.5,247.48,14.82237101]
[1758239681833,0.67,247.53,247.51,30.0402352]
[1758239682024,0.67,247.52,247.51,30.0402352]
[1758239682225,0.28432314,247.5,247.47,0.03]
[1758239682533,0.28432314,247.5,247.48,26.0]
[1758239682723,14.54991715,247.49,247.48,26.0]
[1758239683607,13.87991715,247.49,247.48,26.0]
[1758239685007,13.87991715,247.49,247.48,30.04073056]
[1758239689710,0.06,247.54,247.48,40.82255697]
[1758239690032,0.06,247.54,247.49,0.68]
[1758239690233,0.06,247.54,247.53,26.0]
[1758239690437,0.34432314,247.54,247.53,26.68]
[1758239690816,0.20216157,247.54,247.53,30.71991435]
[1758239691116,0.06,247.54,247.53,30.71991435]
[1758239691327,0.34432314,247.54,247.53,30.71991435]
[1758239692032,0.06,247.54,247.53,30.71991435]
[1758239692231,0.06,247.54,247.53,61.77991435]
[1758239694334,0.06,247.54,247.53,30.03991435]
[1758239694925,0.06,247.54,247.51,41.16051766]
[1758239694926,0.06,247.54,247.51,35.10010198]
[1758239695123,0.28432314,247.52,247.51,35.10010198]
[1758239695434,0.28432314,247.52,247.51,35.80010198]
[1758239699037,0.28432314,247.52,247.51,30.74010198]
[1758239699232,0.28432314,247.52,247.51,4.74010198]
[1758239700339,14.54991715,247.52,247.51,30.04010198]
[1758239701344,13.87991715,247.52,247.51,30.04010198]
[1758239718456,13.87991715,247.52,247.51,30.74010198]
[1758239719156,13.87991715,247.52,247.51,30.04010198]
[1758239719741,13.87991715,247.52,247.51,30.74010198]
[1758239720946,13.87991715,247.52,247.51,30.77010198]
[1758239721938,13.87991715,247.52,247.51,4.77010198]
[1758239727544,0.34432314,247.54,247.53,26.0]
[1758239727952,0.06,247.54,247.53,0.71]
[1758239728342,0.06,247.54,247.53,4.74991435]
[1758239730567,0.06,247.54,247.53,61.80991435]
[1758239730940,0.06,247.54,247.53,30.74991435]
[1758239731149,0.06,247.54,247.53,61.80991435]
[1758239731669,0.06,247.54,247.53,30.74991435]
[1758239731854,0.06,247.54,247.53,61.80991435]
[1758239732257,14.61991715,247.54,247.53,61.07991435]
[1758239732458,0.06,247.54,247.53,61.78991435]
[1758239737485,1e-08,247.54,247.53,61.78991435]
[1758239739363,1e-08,247.54,247.53,61.81991435]
[1758239739555,1e-08,247.54,247.53,61.10991435]
[1758239739758,1e-08,247.54,247.53,61.81991435]
[1758239740678,1e-08,247.54,247.53,61.10991435]
[1758239741051,1e-08,247.54,247.53,61.81991435]
[1758239742575,1e-08,247.54,247.53,30.77991435]
[1758239742868,1e-08,247.54,247.53,61.81991435]
[1758239743381,1e-08,247.54,247.53,63.43597802]
[1758239744553,1e-08,247.54,247.53,61.81991435]
[1758239745271,1e-08,247.54,247.53,63.43597802]
[1758239759084,1e-08,247.54,247.53,32.39597802]
[1758239759469,1e-08,247.54,247.53,63.43597802]
[1758239761989,1e-08,247.54,247.53,32.39597802]
[1758239762192,1e-08,247.54,247.53,63.43597802]
[1758239763089,0.66000001,247.54,247.53,31.68597802]
[1758239763274,0.66000001,247.54,247.53,4.06991435]
[1758239763477,0.66000001,247.54,247.53,35.10991435]
[1758239763671,0.66000001,247.54,247.53,30.06991435]
[1758239763886,0.66000001,247.54,247.53,61.10991435]
[1758239764195,0.66000001,247.54,247.53,35.10991435]
[1758239767608,0.66000001,247.54,247.53,57.07]
[1758239768595,14.25559402,247.54,247.53,0.03]
[1758239768902,14.53991716,247.54,247.53,31.07]
[1758239770684,14.53991716,247.54,247.53,35.10991435]
[1758239773793,14.53991716,247.54,247.53,4.06991435]
[1758239774002,14.53991716,247.54,247.53,35.10991435]
[1758239785818,13.87991716,247.54,247.53,4.06991435]
[1758239785994,13.87991716,247.54,247.53,35.10991435]
[1758239789418,14.56991716,247.54,247.53,0.03]
[1758239791099,18.60966831,247.54,247.53,0.03]
[1758239799233,14.56991716,247.54,247.53,0.03]
[1758239801548,13.59559402,247.54,247.53,31.72]
[1758239801716,1e-08,247.54,247.53,31.72]
[1758239803039,1e-08,247.54,247.53,30.71991435]
[1758239803722,1e-08,247.54,247.53,4.71991435]
[1758239808237,1e-08,247.54,247.53,4.06991435]
[1758239808550,14.56991716,247.54,247.53,31.05]
[1758239810444,14.56991716,247.54,247.53,0.03]
[1758239811647,0.28432315,247.54,247.53,0.03]
[1758239811940,1e-08,247.54,247.53,4.71991435]
[1758239820641,1e-08,247.54,247.53,4.06991435]
[1758239820860,1e-08,247.54,247.53,30.06991435]
[1758239821028,13.87991716,247.54,247.53,61.08991435]
[1758239821454,0.28432315,247.54,247.53,61.08991435]
[1758239823230,0.99432315,247.54,247.53,30.06991435]
[1758239823434,13.87991716,247.54,247.53,35.08991435]
[1758239823946,1e-08,247.54,247.53,35.79991435]
[1758239832239,1e-08,247.54,247.53,35.08991435]
[1758239834960,14.58991716,247.54,247.53,61.08991435]
[1758239835461,14.58991716,247.54,247.53,35.08991435]
[1758239835760,14.58991716,247.54,247.53,0.03]
[1758239836550,20.92435743,247.54,247.53,0.03]
[1758239837041,24.96410858,247.54,247.53,0.03]
[1758239839357,20.89371199,247.54,247.53,0.03]
[1758239839764,18.62966831,247.54,247.53,0.03]
[1758239840273,20.89371199,247.54,247.53,0.03]
[1758239842345,20.89371199,247.54,247.51,0.03]
[1758239842346,44.40800451,247.52,247.51,0.03]
[1758239842545,42.14396083,247.52,247.51,0.03]
[1758239842762,42.85396083,247.52,247.51,0.03]
[1758239843262,46.89403839,247.52,247.51,0.03]
[1758239844356,77.91403839,247.52,247.51,0.03]
[1758239845558,79.53140895,247.52,247.51,0.03]
[1758239846068,53.53140895,247.52,247.51,0.03]
[1758239846966,13.59559401,247.52,247.51,0.03]
[1758239847159,13.87991715,247.52,247.51,0.03]
[1758239847858,14.54991715,247.52,247.51,0.03]
[1758239848163,13.87991715,247.52,247.51,0.03]
[1758239850262,13.87991715,247.52,247.51,0.7]
[1758239850462,13.87991715,247.52,247.51,0.03]
[1758239851168,13.87991715,247.52,247.51,0.7]
[1758239851474,13.87991715,247.52,247.51,0.03]
[1758239855659,14.54991715,247.52,247.51,0.03]
[1758239856781,18.58999471,247.52,247.51,0.03]
[1758239858478,18.58999471,247.52,247.51,0.7]
[1758239858479,13.59559401,247.52,247.51,0.7]
[1758239858782,13.59559401,247.52,247.51,0.03]
[1758239858978,13.73775558,247.52,247.51,0.03]
[1758239859369,13.87991715,247.52,247.51,0.03]
[1758239860282,13.59559401,247.52,247.51,0.03]
[1758239860485,13.59559401,247.52,247.51,0.7]
[1758239860665,13.87991715,247.52,247.51,0.7]
[1758239861179,13.73775558,247.52,247.51,0.7]
[1758239861473,13.87991715,247.52,247.51,4.74024079]
[1758239863558,0.06,247.53,247.51,4.74024079]
[1758239863758,0.06,247.53,247.52,0.67]
[1758239865201,0.06,247.53,247.52,4.71007756]
[1758239870089,0.06,247.53,247.52,30.71007756]
[1758239878990,0.06,247.53,247.52,30.74007756]
[1758239880402,0.06,247.53,247.52,26.03]
[1758239880582,0.06,247.53,247.52,57.11]
[1758239880777,0.06,247.53,247.52,61.15007756]
[1758239882174,14.32559401,247.53,247.52,30.07007756]
[1758239882375,14.32559401,247.53,247.52,4.07007756]
[1758239882711,13.65559401,247.53,247.52,4.07007756]
[1758239884200,0.06,247.53,247.52,4.75007756]
[1758239885780,1e-08,247.54,247.52,5.15408531]
[1758239885994,1e-08,247.54,247.53,26.68]
[1758239886199,1e-08,247.54,247.53,30.71991435]
[1758239888598,1e-08,247.54,247.53,4.71991435]
[1758239893595,1e-08,247.54,247.53,30.71991435]
[1758239893902,1e-08,247.54,247.53,4.71991435]
[1758239894292,1e-08,247.56,247.55,26.0]
[1758239894492,1e-08,247.56,247.55,57.06]
[1758239896912,1e-08,247.56,247.55,61.09958796]
[1758239897741,0.06,247.58,247.55,72.28251665]
[1758239898021,0.06,247.58,247.56,0.68]
[1758239898323,0.06,247.58,247.57,31.06]
[1758239899119,0.06,247.58,247.57,31.74]
[1758239899307,0.06,247.58,247.57,35.77926162]
[1758239900419,0.06,247.58,247.57,35.09926162]
[1758239901923,0.06,247.58,247.57,35.77926162]
[1758239903210,0.06,247.58,247.57,35.09926162]
[1758239906217,0.06,247.58,247.57,35.78926162]
[1758239906420,1e-08,247.58,247.57,35.78926162]
[1758239906905,1e-08,247.59,247.57,35.78926162]
[1758239907115,1e-08,247.59,247.58,0.69]
[1758239908134,1e-08,247.59,247.58,6.34470523]
[1758239911337,1e-08,247.59,247.58,4.72909847]
[1758239911512,1e-08,247.59,247.58,4.03909847]
[1758239911716,0.70000001,247.59,247.58,35.07909847]
[1758239912116,1e-08,247.59,247.58,35.07909847]
[1758239912431,0.70000001,247.59,247.58,35.09909847]
[1758239915728,0.70000001,247.59,247.58,26.0]
[1758239915927,0.70000001,247.59,247.58,57.04]
[1758239917752,0.70000001,247.59,247.58,61.07909847]
[1758239922133,1e-08,247.59,247.58,61.07909847]
[1758239922821,0.70000001,247.59,247.58,61.07909847]
[1758239926030,1e-08,247.59,247.58,61.07909847]
[1758239931834,1e-08,247.59,247.58,61.10909847]
[1758239937843,14.27559402,247.59,247.58,61.10909847]
[1758239938534,13.59559402,247.59,247.58,61.10909847]
[1758239939749,14.27559402,247.59,247.58,61.10909847]
[1758239940154,13.59559402,247.59,247.58,61.10909847]
[1758239940752,14.27559402,247.59,247.58,61.10909847]
[1758239941269,14.27559402,247.59,247.58,57.07]
[1758239941434,14.27559402,247.59,247.58,0.03]
[1758239941435,14.55991716,247.59,247.58,0.03]
[1758239949540,18.59885249,247.59,247.58,0.03]
[1758239950942,20.04735244,247.59,247.58,0.03]
[1758239951775,22.4807636,247.59,247.58,0.03]